{"text_format":"1","workbook":"xlsx","n_sheets":4,"sheets":["modulo","addA_toB","count_up","manual"],"not_rendered":{"charts":0,"images":9,"macros":1,"external_links":0,"defined_names":0,"comments":0,"pivot_tables":0},"unopened":[],"bounds":{"document_bytes":16777216,"sheet_cells":100000,"rows_first":2000,"rows_last":500,"rows_between":2000,"halvings":0,"cell_chars":16384,"cell_head_chars":4096},"cells_cut":0,"cells_raw":0,"read":"whole","date_system":"1900"}

{"sheet":"modulo","index":0,"n_rows":69,"n_cols":32,"rows_kept":69,"cut":false,"hidden":false,"merged":[[9,0,9,1],[2,0,2,1],[3,0,3,1],[4,0,4,1],[7,0,7,1],[8,0,8,1]]}
[]
[null,null,null,null,null,{"$f":"IF(AND($Q$6=\"}\",$P$11=\"{\",$P$13=\"}\"),IF($D$9=\"B\",\"◆\",\"◇\"),\"・\")","v":"・"},{"$f":"IF(O18=\"\\\",\"-\",IF(N19=\"\\\",\"*\",IF(M20=\"\\\",\">\",IF(L21=\"\\\",\"|\",\"=\"))))","v":"-"},{"$f":"IF(U18=\"/\",\"-\",IF(V19=\"/\",\"*\",IF(W20=\"/\",\"<\",IF(X21=\"/\",\"|\",\"=\"))))","v":"<"},{"$f":"IF(AND($Q$6=\"{\",$P$17=\"}\",$P$11=\"}\"),IF($D$9=\"B\",\"◆\",\"◇\"),\"・\")","v":"◆"},null,null,null,null,null,null,"|"]
["B Start",null,{"$f":"ROW(P4)","v":4},{"$f":"COLUMN(P4)","v":16},null,{"$f":"IF(AND($Q$6=\"}\",$P$11=\"}\",$P$17=\"{\"),IF($D$9=\"B\",\"◆\",\"◇\"),\"・\")","v":"・"},{"$f":"IF(M16=\"\\\",\"-\",IF(L17=\"\\\",\"*\",IF(K18=\"\\\",\">\",IF(J19=\"\\\",\"|\",\"=\"))))","v":"="},{"$f":"IF(W16=\"/\",\"-\",IF(X17=\"/\",\"*\",IF(Y18=\"/\",\"<\",IF(Z19=\"/\",\"|\",\"=\"))))","v":"|"},{"$f":"IF(AND($Q$6=\"{\",$P$11=\"{\",$P$13=\"}\"),IF($D$9=\"B\",\"◆\",\"◇\"),\"・\")","v":"・"},null,null,"-","+"]
["R Start",null,{"$f":"ROW(T4)","v":4},{"$f":"COLUMN(T4)","v":20},null,{"$f":"IF(AND($Q$6=\"}\",$P$13=\"{\",$P$11=\"{\"),IF($D$9=\"B\",\"◆\",\"◇\"),\"・\")","v":"・"},{"$f":"IF(P19=\"\\\",\"-\",IF(O20=\"\\\",\"*\",IF(N21=\"\\\",\">\",IF(M22=\"\\\",\"|\",\"=\"))))","v":"*"},{"$f":"IF(T19=\"/\",\"-\",IF(U20=\"/\",\"*\",IF(V21=\"/\",\"<\",IF(W22=\"/\",\"|\",\"=\"))))","v":"="},{"$f":"IF(AND($Q$6=\"{\",$P$11=\"}\",$P$17=\"{\"),IF($D$9=\"B\",\"◆\",\"◇\"),\"・\")","v":"・"},null,"a",{"$f":"IF(AND($P$37=\"}\",$P$31=\"}\"),\"◆\",\"・\")","v":"◆"},{"$f":"IF(AND($P$31=\"{\",$P$33=\"}\"),\"◆\",\"・\")","v":"・"},{"$f":"DEC2HEX(IF($K$48=\"{\",1,0)+IF($K$50=\"{\",2,0)+IF($K$52=\"{\",4,0)+IF($K$54=\"{\",8,0))","v":"3"},null,"B",null,null,null,"R"]
["Log",null,{"$f":"ROW(P2)","v":2},{"$f":"COLUMN(P2)","v":16},null,{"$f":"IF(AND($Q$6=\"}\",$P$17=\"}\",$P$11=\"}\"),IF($D$9=\"B\",\"◆\",\"◇\"),\"・\")","v":"・"},{"$f":"IF(N17=\"\\\",\"-\",IF(M18=\"\\\",\"*\",IF(L19=\"\\\",\">\",IF(K20=\"\\\",\"|\",\"=\"))))","v":">"},{"$f":"IF(V17=\"/\",\"-\",IF(W18=\"/\",\"*\",IF(X19=\"/\",\"<\",IF(Y20=\"/\",\"|\",\"=\"))))","v":"-"},{"$f":"IF(AND($Q$6=\"{\",$P$13=\"{\",$P$11=\"{\"),IF($D$9=\"B\",\"◆\",\"◇\"),\"・\")","v":"・"},null,"b",{"$f":"IF(AND($P$31=\"}\",$P$37=\"{\"),\"◆\",\"・\")","v":"・"},{"$f":"IF(AND($P$33=\"{\",$P$31=\"{\"),\"◆\",\"・\")","v":"・"},{"$f":"DEC2HEX(IF($U$48=\"{\",1,0)+IF($U$50=\"{\",2,0)+IF($U$52=\"{\",4,0)+IF($U$54=\"{\",8,0))","v":"0"},null,"\\",null,null,null,"/"]
[null,null,null,null,null,null,null,null,null,null,null,null,null,null,null,null,"{",null,"\\"]
[null,null,null,null,null,null,null,null,null,null,null,null,null,null,null,"{","(","{","(","{"]
["Ball",null,4,16,null,null,null,null,null,null,null,null,null,null,null,null,"X",null,"\\",null,"/"]
["Color",null,null,"B",null,null,null,null,null,null,null,null,null,null,null,"\\",null,"\\",null,"\\"]
["Pre.",null,null,16,null,null,null,null,null,null,null,null,null,null,null,null,"/",null,"\\",null,"\\"]
[null,null,null,null,null,null,null,null,null,null,null,null,null,null,null,"}",")","}",")","}",null,"\\"]
[null,null,null,null,null,null,null,null,null,null,null,null,null,null,"/",null,"/",null,"\\",null,"\\",null,"\\"]
[null,null,null,null,null,null,null,null,null,null,null,null,null,"\\",null,"}",")","}",")","}",null,"/",null,"\\"]
[null,null,null,null,null,null,null,null,null,null,null,null,null,null,"X",null,"/",null,"\\",null,"X",null,null,null,"\\"]
[null,null,null,null,null,null,null,null,null,null,null,null,"-","/",null,"X",null,null,null,"X",null,"\\","-",null,null,"\\"]
[null,null,null,null,null,null,null,null,null,null,null,"*","X",null,"/",null,"/",null,"\\",null,"\\",null,"X","*",null,null,"\\"]
[null,null,null,null,null,null,null,null,null,null,">","X",null,"X",null,"}",")","}",")","}",null,"/",null,"X","<",null,null,"\\"]
[null,null,null,null,null,null,null,null,null,"|","X",null,"X",null,"\\",null,"/",null,"\\",null,"X",null,"X",null,"X","|",null,null,"/"]
[null,null,null,null,null,null,null,null,null,"X",null,"\\",null,"X",null,"X",null,null,null,"X",null,"X",null,"X",null,"/",null,"\\"]
[null,null,null,null,null,null,null,null,"=",null,"X",null,"X",null,"\\",null,"\\",null,"/",null,"X",null,"/",null,"X",null,"=",null,"/"]
[null,null,null,null,null,null,null,null,1,"=",null,"X",null,"X",null,"\\",null,"/",null,"/",null,"X",null,"X",null,"=",1,"/"]
[null,null,null,null,null,null,null,null,null,3,"=",null,"X",null,"\\",null,"X",null,"/",null,"/",null,"X",null,"=",3,"/"]
[null,null,null,null,null,null,null,null,null,null,0,"=",null,"\\",null,"X",null,"\\",null,"/",null,"/",null,"=",0,"/"]
[null,null,null,null,null,null,null,null,null,null,null,2,null,null,"X",null,"\\",null,"X",null,"/",null,null,2,"/"]
[null,null,null,null,null,null,null,null,null,null,null,null,null,"/",null,"\\",null,"\\",null,"X",null,null,null,"/"]
[null,null,null,null,null,null,null,null,null,null,null,null,"\\",null,null,null,"\\",null,"X",null,"\\",null,"/"]
[null,null,null,null,null,null,null,null,null,null,null,null,null,"\\",null,null,null,"/",null,"/",null,"/"]
[null,null,null,null,null,null,null,null,null,null,null,null,null,null,"\\",null,"/",null,"\\",null,"/"]
[null,null,null,null,null,null,null,null,null,null,null,null,null,null,null,"X",null,null,null,"X"]
[null,null,null,null,null,null,null,null,null,null,null,null,null,null,"/",null,"/",null,"\\",null,"\\"]
[null,null,null,null,null,null,null,null,null,null,null,null,null,"/",null,"}",")","}",")","}",null,"\\",null,null,null,null,null,null,null,null,null,";"]
[null,null,null,null,null,null,null,null,null,null,null,null,"/",null,"/",null,"/",null,"\\",null,"\\",null,"\\"]
[null,null,null,null,null,null,null,null,null,null,null,"/",null,"\\",null,"}",")","}",")","}",null,"/",null,"\\"]
[null,null,null,null,null,null,null,null,null,null,"/",null,null,null,"X",null,"/",null,"\\",null,"X",null,null,null,"\\"]
[null,null,null,null,null,null,null,null,null,"/",null,null,null,"\\",null,"X",null,null,null,"X",null,"\\",null,null,null,"\\"]
[null,null,null,null,null,null,null,null,"/",null,null,null,null,null,"/",null,"/",null,"\\",null,"\\",null,"\\",null,null,null,"\\"]
[null,null,null,null,null,null,null,"/",null,null,null,null,null,"\\",null,"}",")","}",")","}",null,"\\",null,"/",null,null,null,"\\"]
[null,null,null,null,null,null,"\\",null,null,null,null,null,null,null,"/",null,"/",null,"\\",null,"/",null,"X",null,null,null,null,null,"/"]
[null,null,null,null,null,null,null,"/",null,null,null,null,null,"\\",null,"/",null,null,null,"X",null,"/",null,"\\",null,null,null,"\\"]
[null,null,null,null,null,null,"\\",null,null,null,null,null,null,null,"/",null,null,null,"/",null,"X",null,null,null,"/",null,null,null,"/"]
[null,null,null,null,null,null,null,"/",null,null,null,null,null,"/",null,null,null,"/",null,"/",null,"/",null,"\\",null,null,null,"\\"]
[null,null,null,null,null,null,"\\",null,null,null,null,null,"/",null,null,null,"/",null,"/",null,"\\",null,null,null,"/",null,null,null,"/"]
[null,null,null,null,null,null,null,"/",null,null,null,"/",null,null,null,"/",null,"/",null,null,null,"/",null,"\\",null,null,null,"\\"]
[null,null,null,null,null,null,"\\",null,null,null,"/",null,null,null,"/",null,"/",null,null,null,"\\",null,null,null,"/",null,null,null,"/"]
[null,null,null,null,null,null,null,"/",null,"/",null,null,null,"/",null,"/",null,null,null,null,null,"/",null,"\\",null,null,null,"\\"]
[null,null,null,null,null,null,"\\",null,"/",null,null,null,"/",null,"/",null,null,null,null,null,"\\",null,null,null,"/",null,null,null,"/"]
[null,null,null,null,null,null,null,"/",null,null,null,"/","a","\\",null,null,null,null,null,null,null,"/","b","\\",null,null,null,"\\"]
[null,null,null,null,null,null,"\\",null,null,null,"{","(","{","(","{",null,null,null,null,null,"}",")","}",")","}",null,null,null,"/"]
[null,null,null,null,null,null,null,"/",null,"/",null,"/",null,"\\",null,"\\",null,null,null,"/",null,"/",null,"\\",null,"\\",null,"\\"]
[null,null,null,null,null,null,"\\",null,"\\",null,"{","(","{","(","{",null,"/",null,"\\",null,"}",")","}",")","}",null,"/",null,"/"]
[null,null,null,null,null,null,null,"/",null,"/",null,"/",null,"\\",null,"\\",null,null,null,"/",null,"/",null,"\\",null,"\\",null,"\\"]
[null,null,null,null,null,null,"\\",null,"\\",null,"}",")","}",")","}",null,"/",null,"\\",null,"}",")","}",")","}",null,"/",null,"/"]
[null,null,null,null,null,null,null,"/",null,"/",null,"/",null,"\\",null,"\\",null,null,null,"/",null,"/",null,"\\",null,"\\",null,"\\"]
[null,null,null,null,null,null,"\\",null,"\\",null,"}",")","}",")","}",null,"/",null,"\\",null,"}",")","}",")","}",null,"/",null,"/"]
[null,null,null,null,null,null,null,"\\",null,"\\",null,"\\",null,"/",null,"/",null,null,null,"/",null,"/",null,"/",null,"/",null,"/"]
[null,null,null,null,null,null,null,null,"\\",null,"\\",null,"X",null,"/",null,null,null,"/",null,"/",null,"/",null,"/",null,"/"]
[null,null,null,null,null,null,null,null,null,"\\",null,"\\",null,"X",null,null,null,"/",null,"/",null,"/",null,"/",null,"/"]
[null,null,null,null,null,null,null,null,null,null,"\\",null,"\\",null,"\\",null,"/",null,"/",null,"/",null,"/",null,"/"]
[null,null,null,null,null,null,null,null,null,null,null,"\\",null,"\\",null,"X",null,"/",null,"/",null,"/",null,"/"]
[null,null,null,null,null,null,null,null,null,null,null,null,"\\",null,"\\",null,"\\",null,"/",null,"/",null,"/"]
[null,null,null,null,null,null,null,null,null,null,null,null,null,"\\",null,"\\",null,"X",null,"/",null,"/"]
[null,null,null,null,null,null,null,null,null,null,null,null,null,null,"/",null,"\\",null,"X",null,"\\"]
[null,null,null,null,null,null,null,null,null,null,null,null,null,"\\",null,null,null,"/",null,"/",null,"/"]
[null,null,null,null,null,null,null,null,null,null,null,null,null,null,"/",null,"/",null,"/",null,"/"]
[null,null,null,null,null,null,null,null,null,null,null,null,null,"\\",null,"}",")","}",")","/"]
[null,null,null,null,null,null,null,null,null,null,null,null,null,null,"\\",null,"}",null,"}"]
[null,null,null,null,null,null,null,null,null,null,null,null,null,null,null,"\\",null,"X",null,"/"]
[null,null,null,null,null,null,null,null,null,null,null,null,null,null,null,null,"/",null,"\\"]
[null,null,null,null,null,null,null,null,null,null,null,null,null,null,"]","]","]",null,"[","[","["]

{"sheet":"addA_toB","index":1,"n_rows":69,"n_cols":32,"rows_kept":69,"cut":false,"hidden":false,"merged":[[9,0,9,1],[2,0,2,1],[3,0,3,1],[4,0,4,1],[7,0,7,1],[8,0,8,1]]}
[]
[null,null,null,null,null,{"$f":"IF(AND($Q$6=\"}\",$P$11=\"{\",$P$13=\"}\"),IF($D$9=\"B\",\"◆\",\"◇\"),\"・\")","v":"・"},{"$f":"IF(O18=\"\\\",\"-\",IF(N19=\"\\\",\"*\",IF(M20=\"\\\",\">\",IF(L21=\"\\\",\"|\",\"=\"))))","v":"-"},{"$f":"IF(U18=\"/\",\"-\",IF(V19=\"/\",\"*\",IF(W20=\"/\",\"<\",IF(X21=\"/\",\"|\",\"=\"))))","v":"<"},{"$f":"IF(AND($Q$6=\"{\",$P$17=\"}\",$P$11=\"}\"),IF($D$9=\"B\",\"◆\",\"◇\"),\"・\")","v":"◆"},null,null,null,null,null,null,"|"]
["B Start",null,{"$f":"ROW(P4)","v":4},{"$f":"COLUMN(P4)","v":16},null,{"$f":"IF(AND($Q$6=\"}\",$P$11=\"}\",$P$17=\"{\"),IF($D$9=\"B\",\"◆\",\"◇\"),\"・\")","v":"・"},{"$f":"IF(M16=\"\\\",\"-\",IF(L17=\"\\\",\"*\",IF(K18=\"\\\",\">\",IF(J19=\"\\\",\"|\",\"=\"))))","v":"|"},{"$f":"IF(W16=\"/\",\"-\",IF(X17=\"/\",\"*\",IF(Y18=\"/\",\"<\",IF(Z19=\"/\",\"|\",\"=\"))))","v":"="},{"$f":"IF(AND($Q$6=\"{\",$P$11=\"{\",$P$13=\"}\"),IF($D$9=\"B\",\"◆\",\"◇\"),\"・\")","v":"・"},null,null,"-","+"]
["R Start",null,{"$f":"ROW(T4)","v":4},{"$f":"COLUMN(T4)","v":20},null,{"$f":"IF(AND($Q$6=\"}\",$P$13=\"{\",$P$11=\"{\"),IF($D$9=\"B\",\"◆\",\"◇\"),\"・\")","v":"・"},{"$f":"IF(P19=\"\\\",\"-\",IF(O20=\"\\\",\"*\",IF(N21=\"\\\",\">\",IF(M22=\"\\\",\"|\",\"=\"))))","v":">"},{"$f":"IF(T19=\"/\",\"-\",IF(U20=\"/\",\"*\",IF(V21=\"/\",\"<\",IF(W22=\"/\",\"|\",\"=\"))))","v":"|"},{"$f":"IF(AND($Q$6=\"{\",$P$11=\"}\",$P$17=\"{\"),IF($D$9=\"B\",\"◆\",\"◇\"),\"・\")","v":"・"},null,"a",{"$f":"IF(AND($P$37=\"}\",$P$31=\"}\"),\"◆\",\"・\")","v":"◆"},{"$f":"IF(AND($P$31=\"{\",$P$33=\"}\"),\"◆\",\"・\")","v":"・"},{"$f":"DEC2HEX(IF($K$48=\"{\",1,0)+IF($K$50=\"{\",2,0)+IF($K$52=\"{\",4,0)+IF($K$54=\"{\",8,0))","v":"2"},null,"B",null,null,null,"R"]
["Log",null,{"$f":"ROW(P2)","v":2},{"$f":"COLUMN(P2)","v":16},null,{"$f":"IF(AND($Q$6=\"}\",$P$17=\"}\",$P$11=\"}\"),IF($D$9=\"B\",\"◆\",\"◇\"),\"・\")","v":"・"},{"$f":"IF(N17=\"\\\",\"-\",IF(M18=\"\\\",\"*\",IF(L19=\"\\\",\">\",IF(K20=\"\\\",\"|\",\"=\"))))","v":"-"},{"$f":"IF(V17=\"/\",\"-\",IF(W18=\"/\",\"*\",IF(X19=\"/\",\"<\",IF(Y20=\"/\",\"|\",\"=\"))))","v":"|"},{"$f":"IF(AND($Q$6=\"{\",$P$13=\"{\",$P$11=\"{\"),IF($D$9=\"B\",\"◆\",\"◇\"),\"・\")","v":"・"},null,"b",{"$f":"IF(AND($P$31=\"}\",$P$37=\"{\"),\"◆\",\"・\")","v":"・"},{"$f":"IF(AND($P$33=\"{\",$P$31=\"{\"),\"◆\",\"・\")","v":"・"},{"$f":"DEC2HEX(IF($U$48=\"{\",1,0)+IF($U$50=\"{\",2,0)+IF($U$52=\"{\",4,0)+IF($U$54=\"{\",8,0))","v":"3"},null,"\\",null,null,null,"/"]
[null,null,null,null,null,null,null,null,null,null,null,null,null,null,null,null,"{",null,"\\"]
[null,null,null,null,null,null,null,null,null,null,null,null,null,null,null,"{","(","{","(","{"]
["Ball",null,4,16,null,null,null,null,null,null,null,null,null,null,null,null,"X",null,"\\",null,"/"]
["Color",null,null,"B",null,null,null,null,null,null,null,null,null,null,null,"\\",null,"\\",null,"\\"]
["Pre.",null,null,16,null,null,null,null,null,null,null,null,null,null,null,null,"/",null,"\\",null,"\\"]
[null,null,null,null,null,null,null,null,null,null,null,null,null,null,null,"}",")","}",")","}",null,"\\"]
[null,null,null,null,null,null,null,null,null,null,null,null,null,null,"/",null,"/",null,"\\",null,"\\",null,"\\"]
[null,null,null,null,null,null,null,null,null,null,null,null,null,"\\",null,"}",")","}",")","}",null,"/",null,"\\"]
[null,null,null,null,null,null,null,null,null,null,null,null,null,null,"X",null,"/",null,"\\",null,"X",null,null,null,"\\"]
[null,null,null,null,null,null,null,null,null,null,null,null,"-","/",null,"X",null,null,null,"X",null,"\\","-",null,null,"\\"]
[null,null,null,null,null,null,null,null,null,null,null,"*","X",null,"/",null,"/",null,"\\",null,"\\",null,"X","*",null,null,"\\"]
[null,null,null,null,null,null,null,null,null,null,">","X",null,"\\",null,"}",")","}",")","}",null,"X",null,"X","<",null,null,"\\"]
[null,null,null,null,null,null,null,null,null,"|","X",null,"X",null,"\\",null,"/",null,"\\",null,"X",null,"X",null,"X","|",null,null,"/"]
[null,null,null,null,null,null,null,null,null,"\\",null,"X",null,"X",null,"X",null,null,null,"X",null,"X",null,"X",null,"X",null,"\\"]
[null,null,null,null,null,null,null,null,"=",null,"X",null,"X",null,"X",null,"\\",null,"/",null,"X",null,"/",null,"/",null,"=",null,"/"]
[null,null,null,null,null,null,null,null,1,"=",null,"X",null,"\\",null,"\\",null,"/",null,"/",null,"X",null,"X",null,"=",1,"/"]
[null,null,null,null,null,null,null,null,null,3,"=",null,"X",null,"\\",null,"X",null,"/",null,"/",null,"/",null,"=",3,"/"]
[null,null,null,null,null,null,null,null,null,null,0,"=",null,"\\",null,"X",null,"\\",null,"/",null,"/",null,"=",0,"/"]
[null,null,null,null,null,null,null,null,null,null,null,2,null,null,"X",null,"\\",null,"X",null,"/",null,null,2,"/"]
[null,null,null,null,null,null,null,null,null,null,null,null,null,"/",null,"\\",null,"\\",null,"X",null,null,null,"/"]
[null,null,null,null,null,null,null,null,null,null,null,null,"\\",null,null,null,"\\",null,"X",null,"\\",null,"/"]
[null,null,null,null,null,null,null,null,null,null,null,null,null,"\\",null,null,null,"/",null,"/",null,"/"]
[null,null,null,null,null,null,null,null,null,null,null,null,null,null,"\\",null,"/",null,"\\",null,"/"]
[null,null,null,null,null,null,null,null,null,null,null,null,null,null,null,"X",null,null,null,"X"]
[null,null,null,null,null,null,null,null,null,null,null,null,null,null,"/",null,"/",null,"\\",null,"\\"]
[null,null,null,null,null,null,null,null,null,null,null,null,null,"/",null,"}",")","}",")","}",null,"\\",null,null,null,null,null,null,null,null,null,";"]
[null,null,null,null,null,null,null,null,null,null,null,null,"/",null,"/",null,"/",null,"\\",null,"\\",null,"\\"]
[null,null,null,null,null,null,null,null,null,null,null,"/",null,"\\",null,"}",")","}",")","}",null,"/",null,"\\"]
[null,null,null,null,null,null,null,null,null,null,"/",null,null,null,"X",null,"/",null,"\\",null,"X",null,null,null,"\\"]
[null,null,null,null,null,null,null,null,null,"/",null,null,null,"\\",null,"X",null,null,null,"X",null,"\\",null,null,null,"\\"]
[null,null,null,null,null,null,null,null,"/",null,null,null,null,null,"/",null,"/",null,"\\",null,"\\",null,"\\",null,null,null,"\\"]
[null,null,null,null,null,null,null,"/",null,null,null,null,null,"\\",null,"}",")","}",")","}",null,"\\",null,"/",null,null,null,"\\"]
[null,null,null,null,null,null,"\\",null,null,null,null,null,null,null,"/",null,"/",null,"\\",null,"/",null,"X",null,null,null,null,null,"/"]
[null,null,null,null,null,null,null,"/",null,null,null,null,null,"\\",null,"/",null,null,null,"X",null,"/",null,"\\",null,null,null,"\\"]
[null,null,null,null,null,null,"\\",null,null,null,null,null,null,null,"/",null,null,null,"/",null,"X",null,null,null,"/",null,null,null,"/"]
[null,null,null,null,null,null,null,"/",null,null,null,null,null,"/",null,null,null,"/",null,"/",null,"/",null,"\\",null,null,null,"\\"]
[null,null,null,null,null,null,"\\",null,null,null,null,null,"/",null,null,null,"/",null,"/",null,"\\",null,null,null,"/",null,null,null,"/"]
[null,null,null,null,null,null,null,"/",null,null,null,"/",null,null,null,"/",null,"/",null,null,null,"/",null,"\\",null,null,null,"\\"]
[null,null,null,null,null,null,"\\",null,null,null,"/",null,null,null,"/",null,"/",null,null,null,"\\",null,null,null,"/",null,null,null,"/"]
[null,null,null,null,null,null,null,"/",null,"/",null,null,null,"/",null,"/",null,null,null,null,null,"/",null,"\\",null,null,null,"\\"]
[null,null,null,null,null,null,"\\",null,"/",null,null,null,"/",null,"/",null,null,null,null,null,"\\",null,null,null,"/",null,null,null,"/"]
[null,null,null,null,null,null,null,"/",null,null,null,"/","a","\\",null,null,null,null,null,null,null,"/","b","\\",null,null,null,"\\"]
[null,null,null,null,null,null,"\\",null,null,null,"}",")","}",")","}",null,null,null,null,null,"{","(","{","(","{",null,null,null,"/"]
[null,null,null,null,null,null,null,"/",null,"/",null,"/",null,"\\",null,"\\",null,null,null,"/",null,"/",null,"\\",null,"\\",null,"\\"]
[null,null,null,null,null,null,"\\",null,"\\",null,"{","(","{","(","{",null,"/",null,"\\",null,"{","(","{","(","{",null,"/",null,"/"]
[null,null,null,null,null,null,null,"/",null,"/",null,"/",null,"\\",null,"\\",null,null,null,"/",null,"/",null,"\\",null,"\\",null,"\\"]
[null,null,null,null,null,null,"\\",null,"\\",null,"}",")","}",")","}",null,"/",null,"\\",null,"}",")","}",")","}",null,"/",null,"/"]
[null,null,null,null,null,null,null,"/",null,"/",null,"/",null,"\\",null,"\\",null,null,null,"/",null,"/",null,"\\",null,"\\",null,"\\"]
[null,null,null,null,null,null,"\\",null,"\\",null,"}",")","}",")","}",null,"/",null,"\\",null,"}",")","}",")","}",null,"/",null,"/"]
[null,null,null,null,null,null,null,"\\",null,"\\",null,"\\",null,"/",null,"/",null,null,null,"/",null,"/",null,"/",null,"/",null,"/"]
[null,null,null,null,null,null,null,null,"\\",null,"\\",null,"X",null,"/",null,null,null,"/",null,"/",null,"/",null,"/",null,"/"]
[null,null,null,null,null,null,null,null,null,"\\",null,"\\",null,"X",null,null,null,"/",null,"/",null,"/",null,"/",null,"/"]
[null,null,null,null,null,null,null,null,null,null,"\\",null,"\\",null,"\\",null,"/",null,"/",null,"/",null,"/",null,"/"]
[null,null,null,null,null,null,null,null,null,null,null,"\\",null,"\\",null,"X",null,"/",null,"/",null,"/",null,"/"]
[null,null,null,null,null,null,null,null,null,null,null,null,"\\",null,"\\",null,"\\",null,"/",null,"/",null,"/"]
[null,null,null,null,null,null,null,null,null,null,null,null,null,"\\",null,"\\",null,"X",null,"/",null,"/"]
[null,null,null,null,null,null,null,null,null,null,null,null,null,null,"/",null,"\\",null,"X",null,"\\"]
[null,null,null,null,null,null,null,null,null,null,null,null,null,"\\",null,null,null,"/",null,"/",null,"/"]
[null,null,null,null,null,null,null,null,null,null,null,null,null,null,"/",null,"/",null,"/",null,"/"]
[null,null,null,null,null,null,null,null,null,null,null,null,null,"\\",null,"}",")","}",")","/"]
[null,null,null,null,null,null,null,null,null,null,null,null,null,null,"\\",null,"}",null,"}"]
[null,null,null,null,null,null,null,null,null,null,null,null,null,null,null,"\\",null,"X",null,"/"]
[null,null,null,null,null,null,null,null,null,null,null,null,null,null,null,null,"/",null,"\\"]
[null,null,null,null,null,null,null,null,null,null,null,null,null,null,"]","]","]",null,"[","[","["]

{"sheet":"count_up","index":2,"n_rows":69,"n_cols":32,"rows_kept":69,"cut":false,"hidden":false,"merged":[[9,0,9,1],[2,0,2,1],[3,0,3,1],[4,0,4,1],[7,0,7,1],[8,0,8,1]]}
[]
[null,null,null,null,null,{"$f":"IF(AND($Q$6=\"}\",$P$11=\"{\",$P$13=\"}\"),IF($D$9=\"B\",\"◆\",\"◇\"),\"・\")","v":"・"},{"$f":"IF(O18=\"\\\",\"-\",IF(N19=\"\\\",\"*\",IF(M20=\"\\\",\">\",IF(L21=\"\\\",\"|\",\"=\"))))","v":"|"},{"$f":"IF(U18=\"/\",\"-\",IF(V19=\"/\",\"*\",IF(W20=\"/\",\"<\",IF(X21=\"/\",\"|\",\"=\"))))","v":"*"},{"$f":"IF(AND($Q$6=\"{\",$P$17=\"}\",$P$11=\"}\"),IF($D$9=\"B\",\"◆\",\"◇\"),\"・\")","v":"◆"},null,null,null,null,null,null,"|"]
["B Start",null,{"$f":"ROW(P4)","v":4},{"$f":"COLUMN(P4)","v":16},null,{"$f":"IF(AND($Q$6=\"}\",$P$11=\"}\",$P$17=\"{\"),IF($D$9=\"B\",\"◆\",\"◇\"),\"・\")","v":"・"},{"$f":"IF(M16=\"\\\",\"-\",IF(L17=\"\\\",\"*\",IF(K18=\"\\\",\">\",IF(J19=\"\\\",\"|\",\"=\"))))","v":"|"},{"$f":"IF(W16=\"/\",\"-\",IF(X17=\"/\",\"*\",IF(Y18=\"/\",\"<\",IF(Z19=\"/\",\"|\",\"=\"))))","v":"*"},{"$f":"IF(AND($Q$6=\"{\",$P$11=\"{\",$P$13=\"}\"),IF($D$9=\"B\",\"◆\",\"◇\"),\"・\")","v":"・"},null,null,"-","+"]
["R Start",null,{"$f":"ROW(T4)","v":4},{"$f":"COLUMN(T4)","v":20},null,{"$f":"IF(AND($Q$6=\"}\",$P$13=\"{\",$P$11=\"{\"),IF($D$9=\"B\",\"◆\",\"◇\"),\"・\")","v":"・"},{"$f":"IF(P19=\"\\\",\"-\",IF(O20=\"\\\",\"*\",IF(N21=\"\\\",\">\",IF(M22=\"\\\",\"|\",\"=\"))))","v":">"},{"$f":"IF(T19=\"/\",\"-\",IF(U20=\"/\",\"*\",IF(V21=\"/\",\"<\",IF(W22=\"/\",\"|\",\"=\"))))","v":"-"},{"$f":"IF(AND($Q$6=\"{\",$P$11=\"}\",$P$17=\"{\"),IF($D$9=\"B\",\"◆\",\"◇\"),\"・\")","v":"・"},null,"a",{"$f":"IF(AND($P$37=\"}\",$P$31=\"}\"),\"◆\",\"・\")","v":"◆"},{"$f":"IF(AND($P$31=\"{\",$P$33=\"}\"),\"◆\",\"・\")","v":"・"},{"$f":"DEC2HEX(IF($K$48=\"{\",1,0)+IF($K$50=\"{\",2,0)+IF($K$52=\"{\",4,0)+IF($K$54=\"{\",8,0))","v":"0"},null,"B",null,null,null,"R"]
["Log",null,{"$f":"ROW(P2)","v":2},{"$f":"COLUMN(P2)","v":16},null,{"$f":"IF(AND($Q$6=\"}\",$P$17=\"}\",$P$11=\"}\"),IF($D$9=\"B\",\"◆\",\"◇\"),\"・\")","v":"・"},{"$f":"IF(N17=\"\\\",\"-\",IF(M18=\"\\\",\"*\",IF(L19=\"\\\",\">\",IF(K20=\"\\\",\"|\",\"=\"))))","v":"-"},{"$f":"IF(V17=\"/\",\"-\",IF(W18=\"/\",\"*\",IF(X19=\"/\",\"<\",IF(Y20=\"/\",\"|\",\"=\"))))","v":"<"},{"$f":"IF(AND($Q$6=\"{\",$P$13=\"{\",$P$11=\"{\"),IF($D$9=\"B\",\"◆\",\"◇\"),\"・\")","v":"・"},null,"b",{"$f":"IF(AND($P$31=\"}\",$P$37=\"{\"),\"◆\",\"・\")","v":"・"},{"$f":"IF(AND($P$33=\"{\",$P$31=\"{\"),\"◆\",\"・\")","v":"・"},{"$f":"DEC2HEX(IF($U$48=\"{\",1,0)+IF($U$50=\"{\",2,0)+IF($U$52=\"{\",4,0)+IF($U$54=\"{\",8,0))","v":"0"},null,"\\",null,null,null,"/"]
[null,null,null,null,null,null,null,null,null,null,null,null,null,null,null,null,"{",null,"\\"]
[null,null,null,null,null,null,null,null,null,null,null,null,null,null,null,"{","(","{","(","{"]
["Ball",null,4,16,null,null,null,null,null,null,null,null,null,null,null,null,"X",null,"\\",null,"/"]
["Color",null,null,"B",null,null,null,null,null,null,null,null,null,null,null,"\\",null,"\\",null,"\\"]
["Pre.",null,null,16,null,null,null,null,null,null,null,null,null,null,null,null,"/",null,"\\",null,"\\"]
[null,null,null,null,null,null,null,null,null,null,null,null,null,null,null,"}",")","}",")","}",null,"\\"]
[null,null,null,null,null,null,null,null,null,null,null,null,null,null,"/",null,"/",null,"\\",null,"\\",null,"\\"]
[null,null,null,null,null,null,null,null,null,null,null,null,null,"\\",null,"}",")","}",")","}",null,"/",null,"\\"]
[null,null,null,null,null,null,null,null,null,null,null,null,null,null,"X",null,"/",null,"\\",null,"X",null,null,null,"\\"]
[null,null,null,null,null,null,null,null,null,null,null,null,"-","/",null,"X",null,null,null,"X",null,"\\","-",null,null,"\\"]
[null,null,null,null,null,null,null,null,null,null,null,"*","X",null,"/",null,"/",null,"\\",null,"\\",null,"X","*",null,null,"\\"]
[null,null,null,null,null,null,null,null,null,null,">","X",null,"\\",null,"}",")","}",")","}",null,"X",null,"/","<",null,null,"\\"]
[null,null,null,null,null,null,null,null,null,"|","X",null,"X",null,"X",null,"/",null,"\\",null,"X",null,"X",null,"X","|",null,null,"/"]
[null,null,null,null,null,null,null,null,null,"\\",null,"X",null,"X",null,"X",null,null,null,"/",null,"/",null,"/",null,"X",null,"\\"]
[null,null,null,null,null,null,null,null,"=",null,"X",null,"X",null,"X",null,"\\",null,"/",null,"X",null,"X",null,"X",null,"=",null,"/"]
[null,null,null,null,null,null,null,null,1,"=",null,"\\",null,"\\",null,"\\",null,"/",null,"/",null,"X",null,"X",null,"=",1,"/"]
[null,null,null,null,null,null,null,null,null,3,"=",null,"X",null,"\\",null,"X",null,"/",null,"/",null,"X",null,"=",3,"/"]
[null,null,null,null,null,null,null,null,null,null,0,"=",null,"\\",null,"X",null,"\\",null,"/",null,"/",null,"=",0,"/"]
[null,null,null,null,null,null,null,null,null,null,null,2,null,null,"X",null,"\\",null,"X",null,"/",null,null,2,"/"]
[null,null,null,null,null,null,null,null,null,null,null,null,null,"/",null,"\\",null,"\\",null,"X",null,null,null,"/"]
[null,null,null,null,null,null,null,null,null,null,null,null,"\\",null,null,null,"\\",null,"X",null,"\\",null,"/"]
[null,null,null,null,null,null,null,null,null,null,null,null,null,"\\",null,null,null,"/",null,"/",null,"/"]
[null,null,null,null,null,null,null,null,null,null,null,null,null,null,"\\",null,"/",null,"\\",null,"/"]
[null,null,null,null,null,null,null,null,null,null,null,null,null,null,null,"X",null,null,null,"X"]
[null,null,null,null,null,null,null,null,null,null,null,null,null,null,"/",null,"/",null,"\\",null,"\\"]
[null,null,null,null,null,null,null,null,null,null,null,null,null,"/",null,"}",")","}",")","}",null,"\\",null,null,null,null,null,null,null,null,null,";"]
[null,null,null,null,null,null,null,null,null,null,null,null,"/",null,"/",null,"/",null,"\\",null,"\\",null,"\\"]
[null,null,null,null,null,null,null,null,null,null,null,"/",null,"\\",null,"}",")","}",")","}",null,"/",null,"\\"]
[null,null,null,null,null,null,null,null,null,null,"/",null,null,null,"X",null,"/",null,"\\",null,"X",null,null,null,"\\"]
[null,null,null,null,null,null,null,null,null,"/",null,null,null,"\\",null,"X",null,null,null,"X",null,"\\",null,null,null,"\\"]
[null,null,null,null,null,null,null,null,"/",null,null,null,null,null,"/",null,"/",null,"\\",null,"\\",null,"\\",null,null,null,"\\"]
[null,null,null,null,null,null,null,"/",null,null,null,null,null,"\\",null,"}",")","}",")","}",null,"\\",null,"/",null,null,null,"\\"]
[null,null,null,null,null,null,"\\",null,null,null,null,null,null,null,"/",null,"/",null,"\\",null,"/",null,"X",null,null,null,null,null,"/"]
[null,null,null,null,null,null,null,"/",null,null,null,null,null,"\\",null,"/",null,null,null,"X",null,"/",null,"\\",null,null,null,"\\"]
[null,null,null,null,null,null,"\\",null,null,null,null,null,null,null,"/",null,null,null,"/",null,"X",null,null,null,"/",null,null,null,"/"]
[null,null,null,null,null,null,null,"/",null,null,null,null,null,"/",null,null,null,"/",null,"/",null,"/",null,"\\",null,null,null,"\\"]
[null,null,null,null,null,null,"\\",null,null,null,null,null,"/",null,null,null,"/",null,"/",null,"\\",null,null,null,"/",null,null,null,"/"]
[null,null,null,null,null,null,null,"/",null,null,null,"/",null,null,null,"/",null,"/",null,null,null,"/",null,"\\",null,null,null,"\\"]
[null,null,null,null,null,null,"\\",null,null,null,"/",null,null,null,"/",null,"/",null,null,null,"\\",null,null,null,"/",null,null,null,"/"]
[null,null,null,null,null,null,null,"/",null,"/",null,null,null,"/",null,"/",null,null,null,null,null,"/",null,"\\",null,null,null,"\\"]
[null,null,null,null,null,null,"\\",null,"/",null,null,null,"/",null,"/",null,null,null,null,null,"\\",null,null,null,"/",null,null,null,"/"]
[null,null,null,null,null,null,null,"/",null,null,null,"/","a","\\",null,null,null,null,null,null,null,"/","b","\\",null,null,null,"\\"]
[null,null,null,null,null,null,"\\",null,null,null,"}",")","}",")","}",null,null,null,null,null,"}",")","}",")","}",null,null,null,"/"]
[null,null,null,null,null,null,null,"/",null,"/",null,"/",null,"\\",null,"\\",null,null,null,"/",null,"/",null,"\\",null,"\\",null,"\\"]
[null,null,null,null,null,null,"\\",null,"\\",null,"}",")","}",")","}",null,"/",null,"\\",null,"}",")","}",")","}",null,"/",null,"/"]
[null,null,null,null,null,null,null,"/",null,"/",null,"/",null,"\\",null,"\\",null,null,null,"/",null,"/",null,"\\",null,"\\",null,"\\"]
[null,null,null,null,null,null,"\\",null,"\\",null,"}",")","}",")","}",null,"/",null,"\\",null,"}",")","}",")","}",null,"/",null,"/"]
[null,null,null,null,null,null,null,"/",null,"/",null,"/",null,"\\",null,"\\",null,null,null,"/",null,"/",null,"\\",null,"\\",null,"\\"]
[null,null,null,null,null,null,"\\",null,"\\",null,"}",")","}",")","}",null,"/",null,"\\",null,"}",")","}",")","}",null,"/",null,"/"]
[null,null,null,null,null,null,null,"\\",null,"\\",null,"\\",null,"/",null,"/",null,null,null,"/",null,"/",null,"/",null,"/",null,"/"]
[null,null,null,null,null,null,null,null,"\\",null,"\\",null,"X",null,"/",null,null,null,"/",null,"/",null,"/",null,"/",null,"/"]
[null,null,null,null,null,null,null,null,null,"\\",null,"\\",null,"X",null,null,null,"/",null,"/",null,"/",null,"/",null,"/"]
[null,null,null,null,null,null,null,null,null,null,"\\",null,"\\",null,"\\",null,"/",null,"/",null,"/",null,"/",null,"/"]
[null,null,null,null,null,null,null,null,null,null,null,"\\",null,"\\",null,"X",null,"/",null,"/",null,"/",null,"/"]
[null,null,null,null,null,null,null,null,null,null,null,null,"\\",null,"\\",null,"\\",null,"/",null,"/",null,"/"]
[null,null,null,null,null,null,null,null,null,null,null,null,null,"\\",null,"\\",null,"X",null,"/",null,"/"]
[null,null,null,null,null,null,null,null,null,null,null,null,null,null,"/",null,"\\",null,"X",null,"\\"]
[null,null,null,null,null,null,null,null,null,null,null,null,null,"\\",null,null,null,"/",null,"/",null,"/"]
[null,null,null,null,null,null,null,null,null,null,null,null,null,null,"/",null,"/",null,"/",null,"/"]
[null,null,null,null,null,null,null,null,null,null,null,null,null,"\\",null,"}",")","}",")","/"]
[null,null,null,null,null,null,null,null,null,null,null,null,null,null,"\\",null,"}",null,"}"]
[null,null,null,null,null,null,null,null,null,null,null,null,null,null,null,"\\",null,"X",null,"/"]
[null,null,null,null,null,null,null,null,null,null,null,null,null,null,null,null,"/",null,"\\"]
[null,null,null,null,null,null,null,null,null,null,null,null,null,null,"]","]","]",null,"[","[","["]

{"sheet":"manual","index":3,"n_rows":32,"n_cols":1,"rows_kept":32,"cut":false,"hidden":false,"merged":[]}
["* how to play"]
["Push [c] for reset. B cell filled blue, it means blue ball."]
["Click [Tick]. Ball cell move to next position."]
["Repeated clicks, ball cell reaches to ']' cell."]
["Next click returns ball to start position, and output log 'B'."]
["Some sample may over with '=' cells, and show message."]
[]
["* how to edit"]
["You will make settings in the cell characters and 4 columns on the left."]
["The starting position set in the column and the coordinates of the log are links to the cell."]
["Therefore, dragging the 'B', 'R' ,'|' , those are automatically reconfigured."]
["Other dark cell's value are automatically entered with [c] push."]
["Cell characters list"]
["'/', '\\' .... Ramps"]
["'>', '<' ... ... Bits"]
["'}', '{' ... ... Gear Bits (See below lines)"]
["')', '(' .... Gears (See below lines)"]
["'=' .... Interceptor"]
["'X' ..... Crossover"]
["']', '[' .... Goal (write log, and push next ball)"]
["About gear bit"]
["Next to the '{', only '(' can be allowed. '{{' link isn't implemented. "]
["And not '{)' link, too. The '{' paires to '(', and '}' paires to ')'."]
["On edit, you can change all gears linked to active cell with [g] button."]
["Other character is ignored, and balls pass down."]
["Any colors does not affect the motion."]
[]
["* about"]
["For more information, see \"100 lines VBA code for TT emulation\" of next url."]
["https://community.turingtumble.com/"]
["This code can edit in Sheet1 with VBA(VBA attached to MS Excel default)."]
["by Yama-chan 2019.1.20."]